Cogmind - Beta 14 @@@ ROGUE MODE // 2024.08.31 @ 15:28:53 Player: Zaros426 Result: Destroyed by H-61 Shepherd with Heavy Assault Cannon Performance ------------- Evolutions (2) 1000 Regions Visited (7) 1400 Robots Destroyed (180) 900 Value Destroyed (5004) 5004 Prototype IDs (46) 920 Alien Tech Used (0) 0 Bonus (1120) 1120 TOTAL SCORE: 10344 Bonus ------- High Alert Combat Kills 894 Follower Combat Kills 42 Aligned with FarCom 300 Friendly Fire -116 Cogmind --------- Core Integrity 0/550 Matter 82/300 Energy 4/100 System Corruption 58% Temperature Cool (0) Movement Core (750) Ox14 Location -8/Materials Parts ------- > --- POWER (2) -------- (None) > --- PROPULSION (3) --- (None) > --- UTILITY (4) ------ High-capacity Storage Unit Improved Shield Generator > --- WEAPON (2) ------- Mini Grenade Launcher > --- INVENTORY (20) --- Cooling System Structural Scanner Improved Sensor Array Signal Interpreter Particle Charger Supersonic Drone Bay (1/1) Latent Energy Streamer XL Autogun Array Datajack Plasma Cutter Great Maul Peak State ------------ > --- POWER ------------ Light Ion Engine Reinforced Ion Engine > --- PROPULSION ------- Advanced Treads Compact Wheel Armored Wheel > --- UTILITY ---------- High-capacity Storage Unit Targeting Computer Heavy Armor Plating > --- WEAPON ----------- Latent Energy Streamer Enhanced Autogun > --- INVENTORY -------- Cooling System Structural Scanner Improved Sensor Array Signal Interpreter Particle Charger Hardened Medium Armor Plating Hardened Medium Armor Plating Hardened Medium Armor Plating Hardened Medium Armor Plating Hardened Medium Armor Plating Hardlight Generator Supersonic Drone Bay XL Autogun Array Mini Grenade Launcher Datajack Plasma Cutter Maul [Rating: 38] Favorites ----------- Power Ion Engine Engine Ion Engine Power Core Light Nuclear Core Propulsion Improved Treads Treads Improved Treads Wheel Compact Wheel Flight Unit Improved Flight Unit Utility High-capacity Storage Unit Device Heat Sink Storage High-capacity Storage Unit Processor Targeting Computer Protection Hardened Medium Armor Plating Weapon Improved EM Shotgun Energy Gun Improved EM Shotgun Energy Cannon Latent Energy Streamer Ballistic Gun Assault Rifle Launcher Mini Grenade Launcher Impact Weapon Maul Slashing Weapon Mining Claw Special Melee Weapon Datajack Build | -11 -10 -10 -9 -9 -9 -8 -8 ------- Run | Yrd Mat Min Mat Min Exi Min Mat Slots Evolved 4 | . . . 2 . . . 2 Power 1 | . . . . . . . 1 Propulsion 1 | . . . 1 . . . . Utility 2 | . . . 1 . . . 1 Weapon . | . . . . . . . . Parts Attached 123 | 7 20 2 29 5 6 10 44 Power 14 | 1 3 . 3 1 1 . 5 Engine 13 | 1 2 . 3 1 1 . 5 Core 1 | . 1 . . . . . . Reactor . | . . . . . . . . Propulsion 28 | 2 6 . 8 2 1 1 8 Treads 21 | 2 5 . 7 2 1 1 3 Leg . | . . . . . . . . Wheel 6 | . 1 . . . . . 5 Hover . | . . . . . . . . Flight 1 | . . . 1 . . . . Utility 25 | 2 2 . 6 2 1 1 11 Device 7 | 1 . . 2 1 . . 3 Storage 5 | 1 1 . . . 1 . 2 Processor 1 | . 1 . . . . . . Hackware . | . . . . . . . . Protection 12 | . . . 4 1 . 1 6 Artifact . | . . . . . . . . Weapon 56 | 2 9 2 12 . 3 8 20 Energy Gun 17 | 1 4 1 9 . . 2 . Energy Cannon 12 | . . . 2 . 1 2 7 Ballistic Gun 6 | 1 1 1 . . . . 3 Ballistic Cannon . | . . . . . . . . Launcher 10 | . 3 . 1 . 1 2 3 Special Weapon . | . . . . . . . . Impact Weapon 9 | . . . . . . 2 7 Slashing Weapon 1 | . 1 . . . . . . Piercing Weapon . | . . . . . . . . Special Melee Weapon 1 | . . . . . 1 . . Unidentified Prototypes 5 | . . . 4 . . . 1 Parts Lost 34 | . 6 1 2 1 . 3 21 Power 5 | . 1 . . . . . 4 Propulsion 11 | . 1 . 1 1 . . 8 Utility 9 | . . . . . . 1 8 Weapon 9 | . 4 1 1 . . 2 1 Highest Loss Streak 9 | . 3 1 1 1 . 3 9 To Critical Strikes 1 | . . . . . . . 1 Average Slot Usage (%) 96 | . 91 100 99 100 100 99 88 Engine 11 | . 6 14 11 11 11 11 13 Treads 28 | . 26 28 32 33 33 33 16 Wheel 1 | . . . . . . . 7 Device 1 | . 1 . 3 . . . 2 Storage 12 | . 14 14 11 11 11 11 12 Processor 11 | . 12 14 11 11 11 11 8 Protection 6 | . . . 6 10 11 11 9 Energy Gun 11 | . 21 14 14 22 4 . . Energy Cannon 3 | . . . 5 . 7 4 5 Ballistic Gun 2 | . 2 9 1 . . . 4 Launcher 2 | . 3 4 . . . 6 4 Impact Weapon 1 | . . . . . . 10 3 Peak Build Rating 38 | 7 12 11 20 25 35 32 38 Average Rating 19 | 4 7 11 16 21 30 26 33 On Entrance 16 | . 7 11 11 20 25 32 24 Naked Turns . | . . . . . . . . Heaviest Build 81 | 12 50 50 64 63 68 68 81 Greatest Support 69 | 40 46 46 66 69 69 69 69 Greatest Overweight (x) 19 | . 13 1 1 . . . 19 Average Overweight (x) . | . . 1 . . . . 2 Largest Inventory Capacity 20 | 8 20 20 20 20 20 20 20 Average Capacity 19 | 6 19 20 20 20 20 20 20 Most Carried 20 | 5 17 17 20 20 20 20 20 Average Carried 16 | 3 8 16 19 19 19 17 18 Final Capacity 20 | 8 20 20 20 20 20 20 20 Final Carried 20 | 4 16 17 20 18 20 17 14 Class Distribution -------------------- 100% | Mutant Dominant Class ---------------- Mutant | -10/Materials Mutant | -10/Mines Mutant | -9/Materials Mutant | -9/Mines Mutant | -9/Exiles Mutant | -8/Mines Mutant | -8/Materials Resources | -11 -10 -10 -9 -9 -9 -8 -8 ----------- Run | Yrd Mat Min Mat Min Exi Min Mat Matter Collected 1894 | 277 244 134 323 70 . 287 559 Remotely . | . . . . . . . . Salvage Created 6317 | 66 799 193 1838 495 . 427 2499 Parts 348 | 9 57 12 125 38 . 18 89 Haulers Intercepted 4 | . 1 . 3 . . . . Recyclers Shooed 4 | 1 . . . . . 3 . Parts Field Recycled . | . . . . . . . . Retrieved Matter . | . . . . . . . . Parts Self-Destructed . | . . . . . . . . Prevented . | . . . . . . . . Kills | -11 -10 -10 -9 -9 -9 -8 -8 ------- Run | Yrd Mat Min Mat Min Exi Min Mat Combat Hostiles Destroyed 124 | . 17 5 35 16 . 9 42 Melee 1 | . . . . . . . 1 Guns 42 | . 8 4 12 13 . 2 3 Cannons 11 | . . . 11 . . . . AOE 56 | . 9 1 9 2 . 6 29 Classes Destroyed 17 | 1 8 . 4 2 . 1 1 Worker 12 | . . . 1 1 . 2 8 Builder 8 | . 2 . 1 . . 2 3 Tunneler 5 | 3 1 . 1 . . . . Hauler 4 | . 1 . 3 . . . . Recycler 9 | . 1 . 1 . . 3 4 Mechanic 2 | . 1 . . . . . 1 Operator 5 | . 1 . 1 . . . 3 Watcher 12 | . 3 . 5 . . . 4 Swarmer 29 | . 3 . 11 8 . 4 3 Grunt 67 | . 14 5 14 6 . 4 24 Brawler 1 | . . . 1 . . . . Duelist 7 | . . . 1 . . . 6 Protector 1 | . . . . . . . 1 Sentry 13 | . . . 8 . . . 5 Demolisher 1 | . . . . 1 . . . Hunter 4 | . . . . . . 1 3 Assembled 1 | . . . . 1 . . . Thug 1 | . . . 1 . . . . Best Kill Streak 12 | 3 9 2 7 5 . 12 12 Combat Bots Only 9 | . 5 2 5 5 . 6 9 Max Kills in Single Turn 5 | 1 3 1 5 2 . 3 5 Gunslinging 1 | . . . . 1 . . . Exploded 3 | . 3 1 3 1 . 2 3 Melee 1 | . . . . . . . 1 Uniques/NPCs Destroyed . | . . . . . . . . Combat | -11 -10 -10 -9 -9 -9 -8 -8 -------- Run | Yrd Mat Min Mat Min Exi Min Mat Hostile Shots Fired 594 | . 77 26 97 44 . 71 279 Missed 169 | . 23 12 36 8 . 16 74 Damage Taken 6239 | . 726 172 705 471 . 644 3521 Core 797 | . 98 12 52 28 . 54 553 Absorbed by Shields 96 | . . . 37 . . . 59 Core Remaining (%) 74 | 100 . 56 . . . 66 . Volleys Fired 290 | 10 50 18 100 25 . 19 68 Largest 2 | 2 2 2 2 2 . 2 2 Hottest 101 | 70 80 70 101 90 . 90 85 Shots Fired 449 | 20 98 32 155 50 . 23 71 Gun 314 | 20 88 30 89 50 . 9 28 Cannon 91 | . . . 65 . . 1 25 Launcher 44 | . 10 2 1 . . 13 18 Special . | . . . . . . . . Kinetic 83 | 10 17 12 16 . . . 28 Thermal 25 | 10 2 12 1 . . . . Explosive 44 | . 10 2 1 . . 13 18 Electromagnetic 297 | . 69 6 137 50 . 10 25 Robot Hit Streak 20 | 5 7 7 20 5 . 6 8 Robot Miss Streak 6 | 2 4 2 5 6 . 2 2 Penetration Max . | . . . . . . . . Secondary Targets 8 | . 4 1 . 3 . . . Max Gunslinging Chain 1 | . 1 1 . 1 . . . Shots Hit Robots 340 | 12 55 24 119 38 5 23 64 Core Hits 283 | 4 43 12 72 27 . 26 99 Critical Kills 1 | . . . . . . . 1 Critical Parts Destroyed 3 | . . . . . . . 3 Critical Strikes 8 | . 1 3 . . . . 4 Burn 4 | . 1 3 . . . . . Smash 4 | . . . . . . . 4 Melee Attacks 46 | . 4 . . . 5 5 32 Impact 37 | . . . . . . 5 32 Slashing 4 | . 4 . . . . . . Piercing . | . . . . . . . . Sneak Attacks 16 | . . . . . 5 3 8 Combat Hostiles . | . . . . . . . . Follow-up Attacks . | . . . . . . . . Damage Inflicted 14856 | 126 1654 345 3006 640 . 1609 7476 Guns 3130 | 126 665 275 1186 545 . 150 183 Cannons 1253 | . . . 1107 . . 6 140 Explosions 9029 | . 989 70 713 95 . 1192 5970 Melee 1407 | . . . . . . 261 1146 Ramming 37 | . . . . . . . 37 Kinetic 552 | 27 95 108 139 . . . 183 Thermal 1155 | 99 133 127 594 95 . 107 . Explosive 3508 | . 869 70 131 . . 1037 1401 Electromagnetic 8197 | . 557 40 2142 545 . 204 4709 Impact 1407 | . . . . . . 261 1146 Slashing . | . . . . . . . . Piercing . | . . . . . . . . Highest Corruption 58 | . . . . . . 2 58 Average Corruption 18 | . . . . . . 2 29 Corruption Purged . | . . . . . . . . Corruption Blocked . | . . . . . . . . Effects 84 | . . . . . . 16 68 Message Errors 16 | . . . . . . 6 10 Matter Fused 22 | . . . . . . 5 17 Heat Flow Errors 9 | . . . . . . 1 8 Energy Discharges 6 | . . . . . . 1 5 Parts Rejected 4 | . . . . . . . 4 Data Loss (minor) 7 | . . . . . . 1 6 Data Loss (major) 5 | . . . . . . 1 4 Misfires 3 | . . . . . . . 3 Alerts 2 | . . . . . . 1 1 Misdirections 4 | . . . . . . . 4 Weapon Failures 6 | . . . . . . . 6 Overload Shots . | . . . . . . . . Overflow Damage 1027 | . 18 . 53 . . 247 709 Projectiles 48 | . . . 48 . . . . Explosions 375 | . 18 . 5 . . 83 269 Melee 604 | . . . . . . 164 440 Knockbacks 7 | . . . . . . 2 5 Impact 7 | . . . . . . 2 5 Kinetic . | . . . . . . . . Secondary . | . . . . . . . . Self-Inflicted Damage 540 | . 140 . . 47 . 55 298 Shots 16 | . 4 . . 2 . 2 8 Rammed 1 | . . . . . . . 1 Targets Rammed 1 | . . . . . . . 1 Kicked . | . . . . . . . . Crushed . | . . . . . . . . Highest Temperature 324 | 160 96 54 161 324 . 277 288 Average Temperature 63 | 86 20 21 49 95 . 113 75 Received Heat Transfer 2329 | . 249 96 291 180 . 144 1369 Effects 4 | . . . . 3 . . 1 Energy Bleed 1 | . . . . . . . 1 Interference 3 | . . . . 3 . . . Siege Activations . | . . . . . . . . Robots Corrupted 20 | . . . 3 1 . 3 13 Combat Hostiles 14 | . . . 3 1 . 1 9 Parts Fried 62 | . 2 . 15 2 . 6 37 Impact Corruptions 23 | . . . . . . 7 16 Robots Melted . | . . . . . . . . Combat Hostiles . | . . . . . . . . Parts Melted 3 | . . . 2 . . 1 . Heat Transferred 2386 | 296 261 592 987 100 . 150 . Parts Sabotaged . | . . . . . . . . Parts Stolen . | . . . . . . . . Parts Stripped . | . . . . . . . . Power Chain Reactions 14 | . 2 . 8 3 . 1 . Latent Energy Used 3293 | . . . . . . 76 3217 LE Corruption 59 | . . . . . . 2 57 Alert | -11 -10 -10 -9 -9 -9 -8 -8 ------- Run | Yrd Mat Min Mat Min Exi Min Mat Peak Influence 1583 | 15 412 99 623 344 . 292 1583 Initial 150 | . 9 22 . 150 . . . Average 257 | 3 128 37 266 227 . 142 764 Maximum Alert Level 4 | . 2 . 2 1 . 1 4 Low Security (%) 55 | 100 71 100 43 24 . 65 18 Level 1 26 | . 22 . 32 75 . 34 9 Level 2 10 | . 6 . 23 . . . 23 Level 3 2 | . . . . . . . 17 Level 4 4 | . . . . . . . 31 Level 5 . | . . . . . . . . High Security . | . . . . . . . . Max Security . | . . . . . . . . Squads Dispatched 28 | . 6 . 6 . . 1 15 Investigation 10 | . 3 . 2 . . . 5 Extermination . | . . . . . . . . Reinforcement 13 | . 3 . 4 . . 1 5 Assault 5 | . . . . . . . 5 Garrison . | . . . . . . . . Intercept . | . . . . . . . . Searches Triggered . | . . . . . . . . Construction Impeded 4 | . . . 1 . . 1 2 Haulers Reinforced . | . . . . . . . . Active Scanning Responses . | . . . . . . . . Cargo Convoy Interrupts . | . . . . . . . . Stealth | -11 -10 -10 -9 -9 -9 -8 -8 --------- Run | Yrd Mat Min Mat Min Exi Min Mat Distress Signals 6 | . 1 . 3 . . . 2 Communications Jammed . | . . . . . . . . Distress Signals . | . . . . . . . . Times Spotted 183 | . 26 6 48 19 . 10 74 Peak Tracking Total 13 | . 5 2 4 3 . 7 13 Tactical Retreats 10 | . 2 . 2 2 . 1 3 Traps | -11 -10 -10 -9 -9 -9 -8 -8 ------- Run | Yrd Mat Min Mat Min Exi Min Mat Traps Triggered 4 | . 3 . 1 . . . . Indirectly . | . . . . . . . . Trap Hack Attempts . | . . . . . . . . Triggered . | . . . . . . . . Disarmed . | . . . . . . . . Reprogrammed . | . . . . . . . . Reused . | . . . . . . . . Traps Extracted . | . . . . . . . . Installed . | . . . . . . . . Triggered . | . . . . . . . . Machines | -11 -10 -10 -9 -9 -9 -8 -8 ---------- Run | Yrd Mat Min Mat Min Exi Min Mat Machines Disabled 18 | . 1 . 3 . . . 14 Max in Single Turn 2 | . 1 . 1 . . . 2 Garrison Access 1 | . . . . . . . 1 Machines Repaired . | . . . . . . . . Machines Dismantled . | . . . . . . . . Machines Sabotaged . | . . . . . . . . Overloaded Fab Kills . | . . . . . . . . Hacking | -11 -10 -10 -9 -9 -9 -8 -8 --------- Run | Yrd Mat Min Mat Min Exi Min Mat Machines Accessed 29 | . 5 . 11 . 4 1 8 Terminals 21 | . 5 . 9 . . 1 6 Fabricators . | . . . . . . . . Repair Stations . | . . . . . . . . Recycling Units . | . . . . . . . . Scanalyzers 3 | . . . 2 . . . 1 Garrison Access 1 | . . . . . . . 1 Total Hacks 127 | . 18 . 35 . 41 6 27 Successful 82 | . 7 . 24 . 41 3 7 Failed 45 | . 11 . 11 . . 3 20 Catastrophic 9 | . 1 . 2 . . . 6 Database Lockouts . | . . . . . . . . Manual 44 | . 16 . 16 . 1 4 7 Terminals 72 | . 18 . 31 . . 6 17 Fabricators . | . . . . . . . . Repair Stations . | . . . . . . . . Recycling Units . | . . . . . . . . Scanalyzers 11 | . . . 4 . . . 7 Garrison Access 3 | . . . . . . . 3 Terminal Hacks 57 | . 3 . 10 . 41 3 . Record 40 | . . . . . 40 . . Robot Analysis 1 | . . . . . . 1 . Prototype ID Bank 4 | . 1 . 3 . . . . Alert Level 2 | . 1 . 1 . . . . Unreport Threat 3 | . 1 . 2 . . . . Locate Traps 2 | . . . 2 . . . . Dispatch Records 2 | . . . 1 . . 1 . Zone Layout 2 | . . . 1 . . 1 . Derelict Proto ID Bank 1 | . . . . . 1 . . Fabricator Hacks . | . . . . . . . . Repair Station Hacks . | . . . . . . . . Recycling Unit Hacks . | . . . . . . . . Scanalyzer 9 | . . . 4 . . . 5 Insert Component 5 | . . . 2 . . . 3 Analyze 4 | . . . 2 . . . 2 Garrison Access Hacks . | . . . . . . . . Unauthorized Hacks 16 | . 4 . 10 . . . 2 Terminals 16 | . 4 . 10 . . . 2 Track 1 | . . . 1 . . . . Botnet 6 | . 2 . 2 . . . 2 Skim 9 | . 2 . 7 . . . . Fabricators . | . . . . . . . . Repair Stations . | . . . . . . . . Recycling Units . | . . . . . . . . Scanalyzers . | . . . . . . . . Garrison Access . | . . . . . . . . Data Cores Recovered 1 | . . . . . . . 1 Used 1 | . . . . . . . 1 Hacking Detections 25 | . 5 . 11 . . 1 8 Full Trace Events 14 | . 5 . 3 . . . 6 Feedback Events . | . . . . . . . . Feedback Blocked . | . . . . . . . . Robot Schematics Acquired . | . . . . . . . . Robots Built . | . . . . . . . . Authchips . | . . . . . . . . Time . | . . . . . . . . Total Robot Build Rating . | . . . . . . . . Part Schematics Acquired 4 | . . . 2 . . . 2 Parts Built . | . . . . . . . . Authchips . | . . . . . . . . Time . | . . . . . . . . Total Part Build Rating . | . . . . . . . . Parts Repaired . | . . . . . . . . Time . | . . . . . . . . Parts Recycled . | . . . . . . . . Recycled Matter . | . . . . . . . . Retrieved Matter . | . . . . . . . . Retrieved Components . | . . . . . . . . Parts Scanalyzed 5 | . . . 2 . . . 3 Part Schematics Acquired 4 | . . . 2 . . . 2 Parts Damaged 1 | . . . 1 . . . . Bothacking | -11 -10 -10 -9 -9 -9 -8 -8 ------------ Run | Yrd Mat Min Mat Min Exi Min Mat Used RIF Installer . | . . . . . . . . Robots Hacked 4 | . . . . . 4 . . Non-combat 3 | . . . . . 3 . . Combat 1 | . . . . . 1 . . Robot Hacks Applied 4 | . . . . . 4 . . parse_system 4 | . . . . . 4 . . Relay Couplers Released . | . . . . . . . . Fabnet Peak Effective % . | . . . . . . . . Robots Rewired . | . . . . . . . . Allies Hacked . | . . . . . . . . Hacks Repelled . | . . . . . . . . Allies | -11 -10 -10 -9 -9 -9 -8 -8 -------- Run | Yrd Mat Min Mat Min Exi Min Mat Total Allies 3 | . . 2 . 1 . . . Largest Group 2 | . . 2 2 1 . . . Highest-Rated Group 41 | . . 41 41 31 . . . Highest-Rated Ally 31 | . . 31 31 31 . . . Total Orders . | . . . . . . . . Ally Attacks 11 | . . 6 2 3 . . . Total Damage 145 | . . 104 . 41 . . . Kills 2 | . . 1 . 1 . . . Allies Corrupted . | . . . . . . . . Allies Melted . | . . . . . . . . Intel | -11 -10 -10 -9 -9 -9 -8 -8 ------- Run | Yrd Mat Min Mat Min Exi Min Mat Robot Analysis Total 1 | . . . . . . 1 . Derelict Logs Recovered 5 | . . 3 . 2 . . . Drone Launches . | . . . . . . . . Drone Recoveries . | . . . . . . . . Exploration | -11 -10 -10 -9 -9 -9 -8 -8 ------------- Run | Yrd Mat Min Mat Min Exi Min Mat Turns Passed 9138 | 127 1519 1402 1907 1033 858 991 1301 Spaces Moved 4315 | 54 566 559 893 581 513 569 580 Core 7 | 2 2 . . . . . 3 Treads 3841 | 52 522 559 893 581 513 569 152 Legs . | . . . . . . . . Wheels 467 | . 42 . . . . . 425 Hover . | . . . . . . . . Flight . | . . . . . . . . Fastest Speed 50 | 50 130 240 160 160 160 160 125 Average Speed 180 | 155 223 240 160 160 160 160 169 Slowest Speed 1000 | 160 700 240 240 160 160 160 1000 Overloaded Moves . | . . . . . . . . Propulsion Burnouts . | . . . . . . . . Robots Hopped . | . . . . . . . . Cave-ins Triggered . | . . . . . . . . Exploration Rate (%) 76 | 5 92 103 88 99 73 94 58 Regions Visited 7 Branch Regions 4 Pre-discovered Areas 5 | . . 2 1 1 1 . . Known Exits Taken 3 | . . . 1 . 1 1 . Unknown Exits Taken 4 | 1 1 1 . 1 . . . Scrap Searched 4 | . . 1 . 2 . 1 . Spaces Dug 38 | . 1 . . . . . 37 Terrain Destroyed 667 | . 96 18 35 14 . 92 412 Melee 5 | . 1 . . . . . 4 Projectile . | . . . . . . . . AOE 662 | . 95 18 35 14 . 92 408 Terrain Rammed . | . . . . . . . . Walls Destroyed . | . . . . . . . . Machines Disabled . | . . . . . . . . Actions | -11 -10 -10 -9 -9 -9 -8 -8 --------- Run | Yrd Mat Min Mat Min Exi Min Mat Total 5164 | 76 712 588 1223 634 548 614 769 Wait 244 | . 49 8 129 22 17 10 9 Move 4308 | 53 565 558 892 580 512 568 580 Hop . | . . . . . . . . Pick Up 85 | 6 19 2 35 . 3 1 19 Fast Attach 30 | 5 6 . 10 . . . 9 Attach 33 | 2 6 1 4 1 . 3 16 Detach 2 | . . . . . . . 2 Swap 60 | . 8 1 15 4 6 7 19 Drop 65 | . 5 . 38 2 5 1 14 Fire 290 | 10 50 18 100 25 . 19 68 Melee 46 | . 4 . . . 5 5 32 Ram 1 | . . . . . . . 1 Kick . | . . . . . . . . Crush . | . . . . . . . . Escape Stasis . | . . . . . . . . Rewire . | . . . . . . . . Trap . | . . . . . . . . Miscellaneous . | . . . . . . . . Route ------- -11/Scrapyard -10/Materials (discovered 6 exits: *Mat x3 / [*Min x2] / [*Sub]) -10/Mines (discovered 3 exits: *Mat x2 / [*Sub]) -9/Materials (discovered 5 exits: *Mat x2 / *Min / *Sto x2) -9/Mines (discovered 4 exits: *Mat x2 / *Exi / [*Zio]) -9/Exiles -8/Mines (discovered 2 exits: *Mat x2) -8/Materials (discovered 1 exit: [*Fac]) History --------- Turn | Location | Event 50 | -11/Scrapyard | Discovered new exit (range 15) 128 | -11/Scrapyard | Entered Materials 314 | -10/Materials | Build established: Mutant 322 | -10/Materials | Lost 3 parts (1n2w) 432 | -10/Materials | Discovered new exit (range 11) 662 | -10/Materials | Discovered new exit (range 12) 782 | -10/Materials | Discovered new exit (range 7) 886 | -10/Materials | Discovered new exit (range 8) 1077 | -10/Materials | Discovered new exit (range 9) 1394 | -10/Materials | Discovered new exit (range 16) 1647 | -10/Materials | Entered Mines 1872 | -10/Mines | Discovered new exit (range 12) 2654 | -10/Mines | Discovered new exit (range 6) 2771 | -10/Mines | Learned location of Zion (-7) 2864 | -10/Mines | Discovered new exit (range 6) 3049 | -10/Mines | Entered Materials 3049 | -9/Materials | Accompanied by 2 allies 3049 | -9/Materials | Evolved 2 slots: Propulsion x1, Utility x1 3050 | -9/Materials | Identified exit to Mines 3054 | -9/Materials | Led the pair of lost Derelicts to an unsafe place 3791 | -9/Materials | Discovered new exit (range 11) 4192 | -9/Materials | Discovered new exit (range 16) 4313 | -9/Materials | Discovered new exit (range 17) 4380 | -9/Materials | Learned Storage terminal intel 4437 | -9/Materials | Identified exit to Storage 4437 | -9/Materials | Identified exit to Materials 4485 | -9/Materials | Learned Storage stockpile data 4552 | -9/Materials | Learned Storage stockpile data 4572 | -9/Materials | Learned 4 Recycling zone layouts 4600 | -9/Materials | Learned Storage garrison access intel 4956 | -9/Materials | Entered Mines 4990 | -9/Mines | Discovered exit to Materials (range 10) 5030 | -9/Mines | Discovered exit to Materials (range 13) 5269 | -9/Mines | A Derelict revealed a hidden shortcut to a safe place 5283 | -9/Mines | Assembled infested the area 5575 | -9/Mines | Received a Mining Laser from a helpful Derelict 5800 | -9/Mines | Deemed a non-threat by the Exiles lab entrance 5800 | -9/Mines | Discovered new exit (range 5) 5890 | -9/Mines | Learned Materials emergency access door positions 5989 | -9/Mines | Entered Exiles 5990 | -9/Exiles | Identified exit to Mines 6029 | -9/Exiles | Met 8R-AWN 6057 | -9/Exiles | Met EX-HEX 6170 | -9/Exiles | Met EX-BIN 6200 | -9/Exiles | Aligned with FarCom system 6202 | -9/Exiles | Given EX-Vault access code 6239 | -9/Exiles | Opened EX-Vault 6248 | -9/Exiles | Found Supersonic Drone Bay 6254 | -9/Exiles | Found Latent Energy Streamer 6342 | -9/Exiles | Found XL Autogun Array 6376 | -9/Exiles | Warned to stay clear of 0b10 Research branches 6418 | -9/Exiles | Met EX-DEC 6847 | -9/Exiles | Stole three prototypes: Latent Energy Streamer, Supersonic Drone Bay, XL Autogun Array 6847 | -9/Exiles | Entered Mines 6904 | -8/Mines | Lost 3 parts (1u2w) 6926 | -8/Mines | Discovered exit to Materials (range 11) 7371 | -8/Mines | Discovered exit to Materials (range 10) 7838 | -8/Mines | Entered Materials 7838 | -8/Materials | Evolved 2 slots: Power x1, Utility x1 8140 | -8/Materials | System corruption reached 10% 8380 | -8/Materials | Destroyed 8 combat bots 8382 | -8/Materials | Lost 7 parts (2p3n2u) 8475 | -8/Materials | Discovered new exit (range 15) 8512 | -8/Materials | System corruption reached 30% 8638 | -8/Materials | First assault squad dispatched 8751 | -8/Materials | Destroyed 9 combat bots 9025 | -8/Materials | Core integrity fell below 50% 9092 | -8/Materials | Lost 9 parts (2p3n4u) 9136 | -8/Materials | Core integrity fell below 20% 9139 | -8/Materials | Destroyed by H-61 Shepherd with Heavy Assault Cannon Last Messages --------------- 09111_ G-47 Trooper destroyed. 09115_ The unstable cave ceiling collapses. 09118_ U-05 Engineer builds a Wall. 09119_ The unstable cave ceiling collapses. 09119_ Lgt. Nuclear Core crushed. 09119_ Wheel destroyed. 09119_ Hardlight Generator destroyed. 09119_ Critical hit (Blast). 09120_ The unstable cave ceiling collapses. 09127_ System corrupted: FCS attempts to trigger Mni. Grenade Launcher. 09127_ System corrupted: Mni. Grenade Launcher misfires. 09128_ U-05 Engineer lays Concrete. 09129_ U-05 Engineer builds a Wall. 09131_ U-05 Engineer builds a Door. 09132_ The unstable cave ceiling collapses. 09132_ Hrd. Medium Armor Plating destroyed. 09133_ U-05 Engineer lays Concrete. 09135_ Enh. Autogun destroyed. 09135_ U-05 Engineer builds a Wall. 09138_ U-05 Engineer lays Concrete. Map ----- +----------------------------------------------------+ | ????????????????????# #?????????# | | ????????????????????# #???^?^???# | | ????????????????????# #???????^?# | | ????????????????????# #?????????### | | ????????????????????+ #??#^???????? | | ????????????????????# #??# "??????? | | ????????????????????# #???? ???### | | ????????????????????# #######/### | | ????????????######### | | ?????# | | ????????????######### | | ?????????????????#### ########### | | ?????????????????# ! #????######## | | ?????????????????#! !!!!#????# | | ?????????????????#!!!!!!#????# | | ?????????????????########????# | | ?????????????????????????????# | | ?????????????????????????????# | | ?????????????#######??#????### | | ??????????#### # # ## #### " | | ??????????# # #""""""#### | | ??????????## [!/ # # "" # | | ?????????### [ /%=####### S # | | ?????????#% % !/% %+ + # | | ?????????# [ =####### # | | ?????????# @ # # # | | ?????????# % # # # # | | ?????????## % ## " # | | ??????????## %##?? # # | | ???????????##; ##u####?########+### | | ????????????# C | | ????????????#== * [ | | ????????????#%[ %= [* | | ????????????#[* ### ###########/### | | ????????????# u# ???????? ?# | | ????????????# # ??????? ?? | | ????????????# # = ??????? ?? | | ????????????# # ???????" ?? | | ????????????" # !!?????????"" ?? | | ????????????? H #? ????????????"" ?? | | ????????????? #???????????????"" ? | | ????????????? ?????????????????? ? | | ?????????????????????????????????? ? | | ??????????????????????????????????##? | | ????????????????????????????????????? | | ????????????????????????????????????? | | ????????????????????????????????????? | | ????????????????????????????????????? | | ????????????????????????????????????? | | ????????????????????????????????????? | +----------------------------------------------------+ Best States ------------- Heat Dissipation 53 Energy Generation 25 Energy Capacity 565 Matter Stores 300 Matter Capacity 300 Sight Range 16 Terrain Scan Density 10 Armor Coverage 600 Evasion (%) 40 Targeting Accuracy 5 Recoil Reduction 3 Item Schematics ----------------- Datajack | -9/Materials | Scanalyzed Plasma Cutter | -9/Materials | Scanalyzed Signal Interpreter | -8/Materials | Scanalyzed Structural Scanner | -8/Materials | Scanalyzed Robot Schematics ------------------ None Fabricated ------------ Nothing Alien Tech Used ----------------- None Achievements -------------- None Challenges ------------ None Game ------ Seed LongswordAerolevSheargun Manual? 0 Play Time 01:14:00 Cumulative 40.3 hours Start 2024.08.31 @ 13:57:04 End 2024.08.31 @ 15:28:53 Sessions 1 Manual Loads 0 Difficulty Rogue Special Mode None Game No. 27 Rogue 27 Adventurer 0 Explorer 0 Win Type - Total 0 Types 0/0/0/0/0/0/0/0/0 Lore% 33 Gallery% 45 Achievement% 39 Wizard Run 0 Options --------- Layout 0 ASCII 0 Keyboard 0 Movement Mouse Keybinds 0 Fullscreen 1 Font 24/Smallcaps Map View 183x50 Zoom Use 0% Tactical HUD 1 Map Filters NONE Filters NONE Steam 0 RUN: 5f5e6ec2-f99d-4b80-a758-25d76ae4f642